[Event "Early Titled Tuesday Blitz | February 8 2022"]
[White "Saravana, Krishnan P."]
[Black "Dobrov, Vladimir"]
[WhiteFideId "5018382"]
[BlackFideId "4136594"]
[WhiteElo "2210"]
[BlackElo "2614"]
[Result "1/2-1/2"]
[Round "02"]
[TimeControl "180+1"]
[Date "2022.02.08"]
[WhiteClock "0:00:11"]
[BlackClock "0:00:07"]

1. d4 {[%clk 0:03:00]}  Nf6 {[%clk 0:02:54]} 2. c4 {[%clk 0:03:00]}  e6 {[%clk 0:02:55]} 3. Nf3 {[%clk 0:03:00]}  d5 {[%clk 0:02:54]} 4. Nc3 {[%clk 0:03:00]}  c6 {[%clk 0:02:54]} 5. Bg5 {[%clk 0:03:00]}  h6 {[%clk 0:02:53]} 6. Bxf6 {[%clk 0:03:00]}  Qxf6 {[%clk 0:02:54]} 7. e3 {[%clk 0:03:00]}  Nd7 {[%clk 0:02:54]} 8. Qc2 {[%clk 0:02:57]}  Bd6 {[%clk 0:02:52]} 9. Be2 {[%clk 0:02:54]}  O-O {[%clk 0:02:51]} 10. O-O {[%clk 0:02:51]}  dxc4 {[%clk 0:02:51]} 11. Bxc4 {[%clk 0:02:45]}  b6 {[%clk 0:02:51]} 12. Ne4 {[%clk 0:02:44]}  Qe7 {[%clk 0:02:51]} 13. Rac1 {[%clk 0:02:36]}  Bb7 {[%clk 0:02:51]} 14. Rfd1 {[%clk 0:02:33]}  Rfd8 {[%clk 0:02:50]} 15. a3 {[%clk 0:02:33]}  a5 {[%clk 0:02:50]} 16. Ba2 {[%clk 0:02:33]}  Rac8 {[%clk 0:02:49]} 17. Bb1 {[%clk 0:02:32]}  Nf8 {[%clk 0:02:50]} 18. Qb3 {[%clk 0:02:24]}  Bc7 {[%clk 0:02:28]} 19. Ne5 {[%clk 0:02:24]}  c5 {[%clk 0:02:23]} 20. Nf3 {[%clk 0:01:58]}  Bd5 {[%clk 0:02:12]} 21. Qd3 {[%clk 0:01:53]}  c4 {[%clk 0:02:11]} 22. Qe2 {[%clk 0:01:50]}  b5 {[%clk 0:02:11]} 23. Nc3 {[%clk 0:01:46]}  b4 {[%clk 0:02:11]} 24. axb4 {[%clk 0:01:40]}  axb4 {[%clk 0:02:12]} 25. Nxd5 {[%clk 0:01:37]}  exd5 {[%clk 0:02:13]} 26. e4 {[%clk 0:01:37]}  f5 {[%clk 0:01:23]} 27. e5 {[%clk 0:01:33]}  g6 {[%clk 0:01:22]} 28. h4 {[%clk 0:01:31]}  h5 {[%clk 0:01:11]} 29. Qe3 {[%clk 0:01:29]}  Ne6 {[%clk 0:01:11]} 30. Ng5 {[%clk 0:01:22]}  Nxg5 {[%clk 0:01:07]} 31. hxg5 {[%clk 0:01:21]}  b3 {[%clk 0:01:03]} 32. f4 {[%clk 0:01:12]}  Ra8 {[%clk 0:00:58]} 33. Rd2 {[%clk 0:00:53]}  Bb6 {[%clk 0:00:58]} 34. g4 {[%clk 0:00:44]}  hxg4 {[%clk 0:00:55]} 35. Rh2 {[%clk 0:00:44]}  Kg7 {[%clk 0:00:53]} 36. Rh6 {[%clk 0:00:41]}  Rh8 {[%clk 0:00:53]} 37. Bxf5 {[%clk 0:00:33]}  gxf5 {[%clk 0:00:37]} 38. Rxb6 {[%clk 0:00:32]}  Rh3 {[%clk 0:00:38]} 39. Qe1 {[%clk 0:00:23]}  Rah8 {[%clk 0:00:37]} 40. Rh6 {[%clk 0:00:16]}  R8xh6 {[%clk 0:00:36]} 41. gxh6+ {[%clk 0:00:16]}  Kxh6 {[%clk 0:00:35]} 42. e6 {[%clk 0:00:16]}  Kg6 {[%clk 0:00:24]} 43. Rc3 {[%clk 0:00:15]}  Rxc3 {[%clk 0:00:23]} 44. bxc3 {[%clk 0:00:15]}  b2 {[%clk 0:00:21]} 45. Qb1 {[%clk 0:00:15]}  Qb7 {[%clk 0:00:21]} 46. Kf2 {[%clk 0:00:14]}  Qb3 {[%clk 0:00:20]} 47. e7 {[%clk 0:00:12]}  Kf7 {[%clk 0:00:20]} 48. Qxf5+ {[%clk 0:00:12]}  Kxe7 {[%clk 0:00:20]} 49. Qe5+ {[%clk 0:00:12]}  Kd7 {[%clk 0:00:21]} 50. Qxd5+ {[%clk 0:00:13]}  Kc7 {[%clk 0:00:21]} 51. Qc5+ {[%clk 0:00:13]}  Kb7 {[%clk 0:00:22]} 52. Qe7+ {[%clk 0:00:13]}  Kb6 {[%clk 0:00:22]} 53. Qc5+ {[%clk 0:00:13]}  Ka6 {[%clk 0:00:22]} 54. Qc6+ {[%clk 0:00:14]}  Ka7 {[%clk 0:00:19]} 55. Qc7+ {[%clk 0:00:14]}  Ka6 {[%clk 0:00:15]} 56. Qc6+ {[%clk 0:00:14]}  Qb6 {[%clk 0:00:15]} 57. Qxc4+ {[%clk 0:00:14]}  Qb5 {[%clk 0:00:16]} 58. Qc8+ {[%clk 0:00:14]}  Ka5 {[%clk 0:00:15]} 59. Qa8+ {[%clk 0:00:13]}  Qa6 {[%clk 0:00:16]} 60. Qd8+ {[%clk 0:00:11]}  Qb6 {[%clk 0:00:14]} 61. Qd5+ {[%clk 0:00:11]}  Ka6 {[%clk 0:00:14]} 62. Qa2+ {[%clk 0:00:10]}  Kb7 {[%clk 0:00:14]} 63. Qd5+ {[%clk 0:00:10]}  Kc7 {[%clk 0:00:14]} 64. Qf7+ {[%clk 0:00:10]}  Kb8 {[%clk 0:00:15]} 65. Qg8+ {[%clk 0:00:10]}  Ka7 {[%clk 0:00:15]} 66. Qf7+ {[%clk 0:00:10]}  Qb7 {[%clk 0:00:15]} 67. Qa2+ {[%clk 0:00:10]}  Kb8 {[%clk 0:00:16]} 68. Qg8+ {[%clk 0:00:10]}  Ka7 {[%clk 0:00:16]} 69. Qa2+ {[%clk 0:00:10]}  Kb8 {[%clk 0:00:15]} 70. Qg8+ {[%clk 0:00:10]}  Kc7 {[%clk 0:00:15]} 71. Qf7+ {[%clk 0:00:11]}  Kc6 {[%clk 0:00:15]} 72. Qe6+ {[%clk 0:00:11]}  Kc7 {[%clk 0:00:13]} 73. Qf7+ {[%clk 0:00:11]}  Kb6 {[%clk 0:00:06]} 74. Qb3+ {[%clk 0:00:11]}  Kc6 {[%clk 0:00:07]} 75. Qe6+ {[%clk 0:00:11]}  Kb5 {[%clk 0:00:06]} 76. Qb3+ {[%clk 0:00:11]}  Kc6 {[%clk 0:00:07]} 77. Qe6+ {[%clk 0:00:11]} 1/2-1/2


[Site "https://www.chess.com"]

[Event "Early Titled Tuesday Blitz | February 8 2022"]
[White "Seemann, Jakub"]
[Black "Pourramezanali, Amirreza"]
[WhiteFideId "21874697"]
[BlackFideId "12511412"]
[WhiteElo "2003"]
[BlackElo "2376"]
[Result "0-1"]
[Round "02"]
[TimeControl "180+1"]
[Date "2022.02.08"]
[WhiteClock "0:00:01"]
[BlackClock "0:00:40"]

1. e4 {[%clk 0:03:00]}  e6 {[%clk 0:02:57]} 2. d3 {[%clk 0:02:55]}  d5 {[%clk 0:02:57]} 3. Nd2 {[%clk 0:02:54]}  Nf6 {[%clk 0:02:57]} 4. g3 {[%clk 0:02:54]}  c5 {[%clk 0:02:57]} 5. Bg2 {[%clk 0:02:50]}  Nc6 {[%clk 0:02:56]} 6. Ngf3 {[%clk 0:02:50]}  Be7 {[%clk 0:02:56]} 7. O-O {[%clk 0:02:50]}  O-O {[%clk 0:02:55]} 8. Re1 {[%clk 0:02:49]}  h6 {[%clk 0:02:55]} 9. e5 {[%clk 0:02:47]}  Nd7 {[%clk 0:02:55]} 10. Nf1 {[%clk 0:02:48]}  b5 {[%clk 0:02:55]} 11. Bf4 {[%clk 0:02:48]}  a5 {[%clk 0:02:55]} 12. h4 {[%clk 0:02:48]}  b4 {[%clk 0:02:54]} 13. c3 {[%clk 0:02:47]}  a4 {[%clk 0:02:53]} 14. a3 {[%clk 0:02:46]}  Na5 {[%clk 0:02:41]} 15. N1h2 {[%clk 0:02:45]}  Nb3 {[%clk 0:02:41]} 16. Rb1 {[%clk 0:02:45]}  bxa3 {[%clk 0:02:32]} 17. bxa3 {[%clk 0:02:46]}  Qa5 {[%clk 0:02:32]} 18. Qc2 {[%clk 0:02:40]}  Ba6 {[%clk 0:02:26]} 19. h5 {[%clk 0:02:39]}  c4 {[%clk 0:02:15]} 20. d4 {[%clk 0:02:37]}  Bxa3 {[%clk 0:02:14]} 21. Ng4 {[%clk 0:02:37]}  Be7 {[%clk 0:02:08]} 22. Nd2 {[%clk 0:01:54]}  a3 {[%clk 0:01:44]} 23. Rxb3 {[%clk 0:01:12]}  cxb3 {[%clk 0:01:41]} 24. Nxb3 {[%clk 0:01:13]}  Qa4 {[%clk 0:01:39]} 25. Qd2 {[%clk 0:00:55]}  Qxb3 {[%clk 0:01:34]} 26. Bxh6 {[%clk 0:00:55]}  gxh6 {[%clk 0:00:53]} 27. Qxh6 {[%clk 0:00:53]}  Qc2 {[%clk 0:00:53]} 28. Be4 {[%clk 0:00:19]}  dxe4 {[%clk 0:00:52]} 29. Nf6+ {[%clk 0:00:17]}  Nxf6 {[%clk 0:00:52]} 30. exf6 {[%clk 0:00:13]}  Bxf6 {[%clk 0:00:52]} 31. Qxf6 {[%clk 0:00:14]}  e3 {[%clk 0:00:52]} 32. Rxe3 {[%clk 0:00:08]}  Qd1+ {[%clk 0:00:47]} 33. Kg2 {[%clk 0:00:04]}  Qxh5 {[%clk 0:00:40]} 34. Re5 {[%clk 0:00:02]}  Bb7+ {[%clk 0:00:40]} 35. f3 {[%clk 0:00:01]}  Qxf3+ {[%clk 0:00:40]} 0-1


[Site "https://www.chess.com"]

[Event "Early Titled Tuesday Blitz | February 8 2022"]
[White "Seo, Jung Min"]
[Black "Yushko, Olga"]
[WhiteFideId "1734687"]
[BlackFideId "14114500"]
[WhiteElo "2401"]
[BlackElo "2028"]
[Result "1-0"]
[Round "02"]
[TimeControl "180+1"]
[Date "2022.02.08"]
[WhiteClock "0:01:52"]
[BlackClock "0:01:28"]

1. c4 {[%clk 0:03:00]}  e6 {[%clk 0:02:59]} 2. d4 {[%clk 0:03:00]}  f5 {[%clk 0:02:59]} 3. g3 {[%clk 0:03:00]}  Nf6 {[%clk 0:02:59]} 4. Bg2 {[%clk 0:03:00]}  Be7 {[%clk 0:03:00]} 5. Nc3 {[%clk 0:03:00]}  d6 {[%clk 0:03:00]} 6. Nf3 {[%clk 0:02:57]}  O-O {[%clk 0:03:00]} 7. O-O {[%clk 0:02:57]}  a5 {[%clk 0:03:01]} 8. Re1 {[%clk 0:02:57]}  Ne4 {[%clk 0:03:00]} 9. Qc2 {[%clk 0:02:57]}  Nxc3 {[%clk 0:02:56]} 10. bxc3 {[%clk 0:02:57]}  Nc6 {[%clk 0:02:43]} 11. e4 {[%clk 0:02:56]}  e5 {[%clk 0:02:44]} 12. dxe5 {[%clk 0:02:51]}  dxe5 {[%clk 0:02:45]} 13. exf5 {[%clk 0:02:46]}  Bxf5 {[%clk 0:02:45]} 14. Qb2 {[%clk 0:02:45]}  e4 {[%clk 0:02:30]} 15. Nd4 {[%clk 0:02:31]}  Bc5 {[%clk 0:02:23]} 16. Nxf5 {[%clk 0:02:24]}  Rxf5 {[%clk 0:02:22]} 17. Be3 {[%clk 0:02:24]}  Bxe3 {[%clk 0:02:12]} 18. Rxe3 {[%clk 0:02:23]}  Ne5 {[%clk 0:02:08]} 19. Qxb7 {[%clk 0:02:15]}  Ng4 {[%clk 0:01:38]} 20. Rxe4 {[%clk 0:02:01]}  Nxf2 {[%clk 0:01:28]} 21. Rd4 {[%clk 0:01:52]} 1-0


[Site "https://www.chess.com"]

[Event "Early Titled Tuesday Blitz | February 8 2022"]
[White "Shimelkov, Vasiliy"]
[Black "Shevchenko, Kirill"]
[WhiteFideId "13701630"]
[BlackFideId "14129574"]
[WhiteElo "2073"]
[BlackElo "2624"]
[Result "0-1"]
[Round "02"]
[TimeControl "180+1"]
[Date "2022.02.08"]
[WhiteClock "0:00:56"]
[BlackClock "0:01:22"]

1. d4 {[%clk 0:03:00]}  Nf6 {[%clk 0:02:59]} 2. c4 {[%clk 0:03:00]}  e6 {[%clk 0:02:59]} 3. Nf3 {[%clk 0:03:00]}  c5 {[%clk 0:02:59]} 4. d5 {[%clk 0:02:59]}  b5 {[%clk 0:02:51]} 5. dxe6 {[%clk 0:02:59]}  fxe6 {[%clk 0:02:52]} 6. cxb5 {[%clk 0:02:59]}  d5 {[%clk 0:02:51]} 7. e3 {[%clk 0:02:56]}  Bd6 {[%clk 0:02:50]} 8. Be2 {[%clk 0:02:55]}  O-O {[%clk 0:02:50]} 9. O-O {[%clk 0:02:55]}  Nbd7 {[%clk 0:02:47]} 10. b3 {[%clk 0:02:54]}  Bb7 {[%clk 0:02:46]} 11. Bb2 {[%clk 0:02:53]}  e5 {[%clk 0:02:47]} 12. a4 {[%clk 0:02:47]}  Qe7 {[%clk 0:02:44]} 13. a5 {[%clk 0:02:45]}  Rad8 {[%clk 0:02:40]} 14. a6 {[%clk 0:02:42]}  Ba8 {[%clk 0:02:39]} 15. Nbd2 {[%clk 0:02:31]}  e4 {[%clk 0:02:39]} 16. Ne1 {[%clk 0:02:29]}  Ne5 {[%clk 0:02:35]} 17. Qc2 {[%clk 0:02:23]}  Nfg4 {[%clk 0:02:27]} 18. g3 {[%clk 0:02:01]}  d4 {[%clk 0:02:16]} 19. exd4 {[%clk 0:01:56]}  e3 {[%clk 0:01:54]} 20. Bxg4 {[%clk 0:01:31]}  Nxg4 {[%clk 0:01:47]} 21. Nd3 {[%clk 0:01:08]}  exd2 {[%clk 0:01:43]} 22. dxc5 {[%clk 0:01:08]}  Bd5 {[%clk 0:01:24]} 23. cxd6 {[%clk 0:01:06]}  Qe4 {[%clk 0:01:23]} 24. f3 {[%clk 0:00:56]}  Rxf3 {[%clk 0:01:22]} 0-1


[Site "https://www.chess.com"]

[Event "Early Titled Tuesday Blitz | February 8 2022"]
[White "Sokolovsky, Yahli"]
[Black "Molina, Roberto Junio Brito"]
[WhiteFideId "2820242"]
[BlackFideId "2109450"]
[WhiteElo "1770"]
[BlackElo "2402"]
[Result "0-1"]
[Round "02"]
[TimeControl "180+1"]
[Date "2022.02.08"]
[WhiteClock "0:00:01"]
[BlackClock "0:00:28"]

1. b3 {[%clk 0:03:00]}  c6 {[%clk 0:03:00]} 2. Bb2 {[%clk 0:02:57]}  d5 {[%clk 0:03:01]} 3. e3 {[%clk 0:02:57]}  Nf6 {[%clk 0:03:00]} 4. Nf3 {[%clk 0:02:57]}  Bg4 {[%clk 0:02:59]} 5. Be2 {[%clk 0:02:54]}  Nbd7 {[%clk 0:02:56]} 6. d4 {[%clk 0:02:54]}  e6 {[%clk 0:02:56]} 7. Ne5 {[%clk 0:02:45]}  Bxe2 {[%clk 0:02:55]} 8. Qxe2 {[%clk 0:02:46]}  Nxe5 {[%clk 0:02:55]} 9. dxe5 {[%clk 0:02:47]}  Nd7 {[%clk 0:02:54]} 10. O-O {[%clk 0:02:45]}  Qa5 {[%clk 0:02:51]} 11. a3 {[%clk 0:02:31]}  g6 {[%clk 0:02:50]} 12. b4 {[%clk 0:02:28]}  Qc7 {[%clk 0:02:49]} 13. f4 {[%clk 0:02:27]}  a5 {[%clk 0:02:49]} 14. b5 {[%clk 0:02:19]}  cxb5 {[%clk 0:02:32]} 15. Nc3 {[%clk 0:01:45]}  Qc4 {[%clk 0:02:22]} 16. Rfe1 {[%clk 0:01:30]}  Qxe2 {[%clk 0:02:21]} 17. Rxe2 {[%clk 0:01:31]}  b4 {[%clk 0:02:19]} 18. Nb5 {[%clk 0:01:27]}  Kd8 {[%clk 0:02:15]} 19. Nd6 {[%clk 0:01:10]}  bxa3 {[%clk 0:01:56]} 20. Bxa3 {[%clk 0:01:01]}  Bxd6 {[%clk 0:01:54]} 21. Bxd6 {[%clk 0:01:01]}  b6 {[%clk 0:01:39]} 22. e4 {[%clk 0:00:50]}  dxe4 {[%clk 0:01:32]} 23. Rxe4 {[%clk 0:00:51]}  Rc8 {[%clk 0:01:24]} 24. Re2 {[%clk 0:00:26]}  Rc6 {[%clk 0:01:19]} 25. Rd2 {[%clk 0:00:21]}  Kc8 {[%clk 0:01:19]} 26. Be7 {[%clk 0:00:22]}  Re8 {[%clk 0:01:16]} 27. Bh4 {[%clk 0:00:21]}  Nc5 {[%clk 0:01:05]} 28. Re2 {[%clk 0:00:21]}  Kb7 {[%clk 0:01:01]} 29. Rd1 {[%clk 0:00:21]}  Rec8 {[%clk 0:00:58]} 30. Bf2 {[%clk 0:00:20]}  R8c7 {[%clk 0:00:56]} 31. g4 {[%clk 0:00:17]}  b5 {[%clk 0:00:53]} 32. Rb1 {[%clk 0:00:17]}  Ka6 {[%clk 0:00:52]} 33. Re3 {[%clk 0:00:15]}  b4 {[%clk 0:00:52]} 34. c3 {[%clk 0:00:15]}  Kb5 {[%clk 0:00:48]} 35. cxb4 {[%clk 0:00:15]}  axb4 {[%clk 0:00:48]} 36. Re2 {[%clk 0:00:13]}  Na6 {[%clk 0:00:46]} 37. Rd2 {[%clk 0:00:07]}  Rc1+ {[%clk 0:00:41]} 38. Rxc1 {[%clk 0:00:07]}  Rxc1+ {[%clk 0:00:41]} 39. Kg2 {[%clk 0:00:08]}  Rc7 {[%clk 0:00:38]} 40. Kf3 {[%clk 0:00:07]}  b3 {[%clk 0:00:38]} 41. Bd4 {[%clk 0:00:04]}  Nc5 {[%clk 0:00:36]} 42. Ke3 {[%clk 0:00:02]}  Na4 {[%clk 0:00:35]} 43. Rf2 {[%clk 0:00:03]}  Rc2 {[%clk 0:00:29]} 44. Rxc2 {[%clk 0:00:02]}  bxc2 {[%clk 0:00:29]} 45. Kd2 {[%clk 0:00:03]}  Kc4 {[%clk 0:00:30]} 46. Ba1 {[%clk 0:00:03]}  Kb3 {[%clk 0:00:30]} 47. Bd4 {[%clk 0:00:02]}  Nb2 {[%clk 0:00:29]} 48. g5 {[%clk 0:00:01]}  Nd3 {[%clk 0:00:28]} 49. Bb2 {[%clk 0:00:01]} 0-1


[Site "https://www.chess.com"]

[Event "Early Titled Tuesday Blitz | February 8 2022"]
[White "Stanisz, Patryk"]
[Black "Vetokhin, Ilia"]
[WhiteFideId "1123106"]
[BlackFideId "24156078"]
[WhiteElo "1876"]
[BlackElo "1897"]
[Result "0-1"]
[Round "02"]
[TimeControl "180+1"]
[Date "2022.02.08"]
[WhiteClock "0:00:01"]
[BlackClock "0:01:00"]

1. Nf3 {[%clk 0:03:00]}  Nf6 {[%clk 0:02:59]} 2. c4 {[%clk 0:03:01]}  g6 {[%clk 0:03:00]} 3. Nc3 {[%clk 0:03:01]}  Bg7 {[%clk 0:03:01]} 4. e4 {[%clk 0:03:01]}  O-O {[%clk 0:03:01]} 5. g3 {[%clk 0:03:00]}  d6 {[%clk 0:03:02]} 6. Bg2 {[%clk 0:03:00]}  c5 {[%clk 0:03:03]} 7. O-O {[%clk 0:03:00]}  Nc6 {[%clk 0:03:03]} 8. d4 {[%clk 0:03:01]}  a6 {[%clk 0:02:43]} 9. h3 {[%clk 0:03:00]}  cxd4 {[%clk 0:02:36]} 10. Nxd4 {[%clk 0:03:01]}  Nxe4 {[%clk 0:02:36]} 11. Nxc6 {[%clk 0:02:53]}  Nxc3 {[%clk 0:02:35]} 12. Nxd8 {[%clk 0:02:31]}  Nxd1 {[%clk 0:02:34]} 13. Nxb7 {[%clk 0:01:58]}  Rb8 {[%clk 0:02:11]} 14. Rxd1 {[%clk 0:01:38]}  Bxb7 {[%clk 0:02:11]} 15. Rb1 {[%clk 0:01:22]}  Bxg2 {[%clk 0:02:07]} 16. Kxg2 {[%clk 0:01:22]}  Rfc8 {[%clk 0:02:08]} 17. b3 {[%clk 0:00:30]}  Rxc4 {[%clk 0:02:02]} 18. Bb2 {[%clk 0:00:30]}  Rc2 {[%clk 0:01:55]} 19. Bxg7 {[%clk 0:00:30]}  Kxg7 {[%clk 0:01:56]} 20. Ra1 {[%clk 0:00:27]}  Rbc8 {[%clk 0:01:43]} 21. Rd4 {[%clk 0:00:26]}  Rb2 {[%clk 0:01:29]} 22. Ra4 {[%clk 0:00:26]}  Rcc2 {[%clk 0:01:30]} 23. Rf1 {[%clk 0:00:07]}  Rxa2 {[%clk 0:01:29]} 24. Re4 {[%clk 0:00:06]}  e6 {[%clk 0:01:25]} 25. b4 {[%clk 0:00:05]}  d5 {[%clk 0:01:24]} 26. Rf4 {[%clk 0:00:04]}  e5 {[%clk 0:01:04]} 27. Rf3 {[%clk 0:00:02]}  e4 {[%clk 0:01:00]} 28. Rc3 {[%clk 0:00:01]}  Rxc3 {[%clk 0:01:00]} 0-1


[Site "https://www.chess.com"]

[Event "Early Titled Tuesday Blitz | February 8 2022"]
[White "Svane, Frederik"]
[Black "Potapova, Margarita"]
[WhiteFideId "12923044"]
[BlackFideId "14126869"]
[WhiteElo "2459"]
[BlackElo "2209"]
[Result "1-0"]
[Round "02"]
[TimeControl "180+1"]
[Date "2022.02.08"]
[WhiteClock "0:00:03"]
[BlackClock "0:00:03"]

1. e4 {[%clk 0:03:00]}  c5 {[%clk 0:02:57]} 2. Nf3 {[%clk 0:03:00]}  d6 {[%clk 0:02:58]} 3. d4 {[%clk 0:03:00]}  cxd4 {[%clk 0:02:58]} 4. Nxd4 {[%clk 0:03:01]}  Nf6 {[%clk 0:02:58]} 5. f3 {[%clk 0:03:00]}  Nc6 {[%clk 0:02:57]} 6. Be3 {[%clk 0:02:54]}  e6 {[%clk 0:02:57]} 7. c4 {[%clk 0:02:50]}  Be7 {[%clk 0:02:57]} 8. Nc3 {[%clk 0:02:50]}  O-O {[%clk 0:02:57]} 9. Be2 {[%clk 0:02:51]}  d5 {[%clk 0:02:57]} 10. cxd5 {[%clk 0:02:46]}  exd5 {[%clk 0:02:56]} 11. exd5 {[%clk 0:02:45]}  Nxd5 {[%clk 0:02:54]} 12. Nxd5 {[%clk 0:02:37]}  Qxd5 {[%clk 0:02:53]} 13. O-O {[%clk 0:02:37]}  Nxd4 {[%clk 0:02:30]} 14. Qxd4 {[%clk 0:02:34]}  Qxd4 {[%clk 0:02:27]} 15. Bxd4 {[%clk 0:02:35]}  Be6 {[%clk 0:02:28]} 16. Rfd1 {[%clk 0:02:31]}  Rfc8 {[%clk 0:02:24]} 17. a3 {[%clk 0:02:23]}  Bg5 {[%clk 0:02:20]} 18. Kf2 {[%clk 0:02:17]}  Rc2 {[%clk 0:02:17]} 19. Kf1 {[%clk 0:02:11]}  h6 {[%clk 0:01:58]} 20. Bd3 {[%clk 0:02:01]}  Bc4 {[%clk 0:01:28]} 21. Bxc4 {[%clk 0:02:01]}  Rxc4 {[%clk 0:01:29]} 22. Bc3 {[%clk 0:02:01]}  Rc7 {[%clk 0:01:27]} 23. Rd3 {[%clk 0:01:58]}  Kf8 {[%clk 0:01:17]} 24. Rad1 {[%clk 0:01:57]}  g6 {[%clk 0:01:16]} 25. Rd7 {[%clk 0:01:27]}  Rac8 {[%clk 0:01:15]} 26. Be5 {[%clk 0:01:23]}  Rc1 {[%clk 0:00:43]} 27. Rxc1 {[%clk 0:01:19]}  Rxc1+ {[%clk 0:00:42]} 28. Kf2 {[%clk 0:01:20]}  Rc2+ {[%clk 0:00:35]} 29. Kg3 {[%clk 0:01:20]}  f6 {[%clk 0:00:15]} 30. Bc3 {[%clk 0:01:01]}  Be3 {[%clk 0:00:13]} 31. Rxb7 {[%clk 0:00:59]}  f5 {[%clk 0:00:13]} 32. a4 {[%clk 0:00:48]}  h5 {[%clk 0:00:10]} 33. Rh7 {[%clk 0:00:25]}  h4+ {[%clk 0:00:09]} 34. Kh3 {[%clk 0:00:20]}  g5 {[%clk 0:00:09]} 35. Rd7 {[%clk 0:00:16]}  g4+ {[%clk 0:00:09]} 36. fxg4 {[%clk 0:00:17]}  fxg4+ {[%clk 0:00:10]} 37. Kxg4 {[%clk 0:00:15]}  Bg1 {[%clk 0:00:07]} 38. Rd2 {[%clk 0:00:07]}  Rc1 {[%clk 0:00:06]} 39. Kxh4 {[%clk 0:00:07]}  Bxh2 {[%clk 0:00:06]} 40. Rd7 {[%clk 0:00:03]}  Bf4 {[%clk 0:00:05]} 41. Kg4 {[%clk 0:00:02]}  Be3 {[%clk 0:00:05]} 42. Kf3 {[%clk 0:00:02]}  Bb6 {[%clk 0:00:05]} 43. g4 {[%clk 0:00:02]}  Rf1+ {[%clk 0:00:04]} 44. Ke4 {[%clk 0:00:03]}  Re1+ {[%clk 0:00:04]} 45. Kf5 {[%clk 0:00:03]}  Re8 {[%clk 0:00:05]} 46. Kg6 {[%clk 0:00:02]}  Kg8 {[%clk 0:00:05]} 47. Rg7+ {[%clk 0:00:02]}  Kf8 {[%clk 0:00:03]} 48. Bb4+ {[%clk 0:00:03]} 1-0


[Site "https://www.chess.com"]

[Event "Early Titled Tuesday Blitz | February 8 2022"]
[White "Taboas Rodriguez, Daniel"]
[Black "Nesterov, Arseniy"]
[WhiteFideId "2208466"]
[BlackFideId "24198455"]
[WhiteElo "2429"]
[BlackElo "2489"]
[Result "0-1"]
[Round "02"]
[TimeControl "180+1"]
[Date "2022.02.08"]
[WhiteClock "0:00:07"]
[BlackClock "0:00:03"]

1. d4 {[%clk 0:02:59]}  d5 {[%clk 0:03:00]} 2. Nf3 {[%clk 0:03:00]}  Nf6 {[%clk 0:02:59]} 3. c4 {[%clk 0:03:01]}  e6 {[%clk 0:02:56]} 4. Bg5 {[%clk 0:03:00]}  Be7 {[%clk 0:02:53]} 5. e3 {[%clk 0:03:01]}  Nbd7 {[%clk 0:02:50]} 6. Nc3 {[%clk 0:03:01]}  O-O {[%clk 0:02:48]} 7. Rc1 {[%clk 0:03:00]}  h6 {[%clk 0:02:46]} 8. Bh4 {[%clk 0:03:00]}  c5 {[%clk 0:02:41]} 9. cxd5 {[%clk 0:02:59]}  Nxd5 {[%clk 0:02:39]} 10. Bxe7 {[%clk 0:02:59]}  Nxe7 {[%clk 0:02:34]} 11. Be2 {[%clk 0:02:38]}  b6 {[%clk 0:02:33]} 12. O-O {[%clk 0:02:39]}  Bb7 {[%clk 0:02:33]} 13. a3 {[%clk 0:02:38]}  Nf5 {[%clk 0:02:29]} 14. dxc5 {[%clk 0:02:34]}  Nxc5 {[%clk 0:02:28]} 15. b4 {[%clk 0:02:34]}  Ne4 {[%clk 0:02:15]} 16. Nxe4 {[%clk 0:02:32]}  Bxe4 {[%clk 0:02:15]} 17. Qa4 {[%clk 0:02:26]}  Qf6 {[%clk 0:02:08]} 18. Rc7 {[%clk 0:02:14]}  Qb2 {[%clk 0:01:54]} 19. Bd1 {[%clk 0:01:41]}  a5 {[%clk 0:01:24]} 20. bxa5 {[%clk 0:01:41]}  Bd3 {[%clk 0:01:16]} 21. Re1 {[%clk 0:01:38]}  Rxa5 {[%clk 0:01:13]} 22. Qb4 {[%clk 0:01:37]}  Qxb4 {[%clk 0:00:46]} 23. axb4 {[%clk 0:01:37]}  Ra1 {[%clk 0:00:42]} 24. Bb3 {[%clk 0:01:25]}  Rfa8 {[%clk 0:00:37]} 25. Rcc1 {[%clk 0:01:21]}  Rxc1 {[%clk 0:00:36]} 26. Rxc1 {[%clk 0:01:22]}  Ra3 {[%clk 0:00:28]} 27. Bd1 {[%clk 0:01:22]}  f6 {[%clk 0:00:22]} 28. Ne1 {[%clk 0:01:17]}  Bb5 {[%clk 0:00:17]} 29. Rb1 {[%clk 0:00:55]}  Kf7 {[%clk 0:00:12]} 30. Bg4 {[%clk 0:00:51]}  Rc3 {[%clk 0:00:08]} 31. Bxf5 {[%clk 0:00:50]}  exf5 {[%clk 0:00:09]} 32. Nf3 {[%clk 0:00:50]}  Bd3 {[%clk 0:00:08]} 33. Rd1 {[%clk 0:00:49]}  Be2 {[%clk 0:00:08]} 34. Rb1 {[%clk 0:00:49]}  Bxf3 {[%clk 0:00:06]} 35. gxf3 {[%clk 0:00:50]}  Rc4 {[%clk 0:00:06]} 36. f4 {[%clk 0:00:45]}  b5 {[%clk 0:00:05]} 37. Kg2 {[%clk 0:00:45]}  g5 {[%clk 0:00:06]} 38. fxg5 {[%clk 0:00:44]}  fxg5 {[%clk 0:00:06]} 39. Kf3 {[%clk 0:00:43]}  Kf6 {[%clk 0:00:07]} 40. h3 {[%clk 0:00:42]}  Kg6 {[%clk 0:00:07]} 41. Kg3 {[%clk 0:00:42]}  Kh5 {[%clk 0:00:06]} 42. Rb2 {[%clk 0:00:43]}  Rc3 {[%clk 0:00:07]} 43. Kg2 {[%clk 0:00:40]}  Rc4 {[%clk 0:00:06]} 44. Rb3 {[%clk 0:00:39]}  Kg6 {[%clk 0:00:07]} 45. Rb1 {[%clk 0:00:40]}  Kf6 {[%clk 0:00:07]} 46. Kg3 {[%clk 0:00:39]}  h5 {[%clk 0:00:07]} 47. Kf3 {[%clk 0:00:38]}  g4+ {[%clk 0:00:06]} 48. hxg4 {[%clk 0:00:36]}  hxg4+ {[%clk 0:00:05]} 49. Kg3 {[%clk 0:00:36]}  Ke5 {[%clk 0:00:06]} 50. Rb2 {[%clk 0:00:35]}  Ke4 {[%clk 0:00:06]} 51. Rb1 {[%clk 0:00:36]}  Kd3 {[%clk 0:00:06]} 52. Rd1+ {[%clk 0:00:34]}  Ke4 {[%clk 0:00:03]} 53. Rb1 {[%clk 0:00:34]}  Ke5 {[%clk 0:00:04]} 54. Kh4 {[%clk 0:00:32]}  Rc2 {[%clk 0:00:04]} 55. Kg3 {[%clk 0:00:32]}  Rc3 {[%clk 0:00:04]} 56. Rd1 {[%clk 0:00:28]}  Rc4 {[%clk 0:00:03]} 57. Rb1 {[%clk 0:00:28]}  Ke4 {[%clk 0:00:03]} 58. Rb3 {[%clk 0:00:21]}  Rc1 {[%clk 0:00:03]} 59. Rb2 {[%clk 0:00:20]}  Rc3 {[%clk 0:00:03]} 60. Rb1 {[%clk 0:00:19]}  f4+ {[%clk 0:00:03]} 61. Kxg4 {[%clk 0:00:19]}  fxe3 {[%clk 0:00:04]} 62. fxe3 {[%clk 0:00:20]}  Kxe3 {[%clk 0:00:04]} 63. Kf5 {[%clk 0:00:20]}  Kd3 {[%clk 0:00:03]} 64. Ke5 {[%clk 0:00:19]}  Kc4 {[%clk 0:00:04]} 65. Kd6 {[%clk 0:00:18]}  Rb3 {[%clk 0:00:04]} 66. Rh1 {[%clk 0:00:10]}  Kxb4 {[%clk 0:00:03]} 67. Rh4+ {[%clk 0:00:09]}  Ka5 {[%clk 0:00:03]} 68. Kc5 {[%clk 0:00:10]}  Rc3+ {[%clk 0:00:04]} 69. Kd5 {[%clk 0:00:10]}  b4 {[%clk 0:00:04]} 70. Rh1 {[%clk 0:00:10]}  b3 {[%clk 0:00:03]} 71. Kd4 {[%clk 0:00:10]}  Kb4 {[%clk 0:00:03]} 72. Rh8 {[%clk 0:00:07]}  Rc1 {[%clk 0:00:03]} 73. Rb8+ {[%clk 0:00:07]}  Ka3 {[%clk 0:00:03]} 74. Kd3 {[%clk 0:00:07]}  b2 {[%clk 0:00:03]} 75. Kd2 {[%clk 0:00:07]}  b1=Q {[%clk 0:00:03]} 0-1


[Site "https://www.chess.com"]